[Event "*** Titled Tuesday 3|2 Blitz"]
[Site "Chess.com"]
[Date "2015.12.01"]
[Round "2"]
[White "THORK"]
[Black "Grootneus"]
[Result "1-0"]
[WhiteElo "2207"]
[BlackElo "2017"]
[TimeControl "180+2"]
[EndTime "11:21:29 PST"]
[Termination "THORK won by resignation"]

1. f4 {[%clk 0:03:00.1]} 1... d5 {[%clk 0:02:59.8]} 2. Nf3 {[%clk 0:02:59.5]}
2... Nf6 {[%clk 0:03:00.5]} 3. e3 {[%clk 0:03:00.8]} 3... g6 {[%clk 0:03:02]} 4.
d3 {[%clk 0:03:01.6]} 4... Bg7 {[%clk 0:03:03.6]} 5. Be2 {[%clk 0:03:03.3]} 5...
O-O {[%clk 0:03:04.8]} 6. O-O {[%clk 0:03:05.1]} 6... c5 {[%clk 0:03:05.9]} 7.
Nc3 {[%clk 0:03:06.5]} 7... Nc6 {[%clk 0:03:02.4]} 8. e4 {[%clk 0:03:07.1]} 8...
dxe4 {[%clk 0:02:54.8]} 9. dxe4 {[%clk 0:03:07.9]} 9... Bg4 {[%clk 0:02:53.9]}
10. e5 {[%clk 0:03:04.8]} 10... Ne8 {[%clk 0:02:52.1]} 11. Ne4 {[%clk 0:03:04]}
11... b6 {[%clk 0:02:50.9]} 12. c3 {[%clk 0:03:02.8]} 12... Nc7 {[%clk
0:02:51.7]} 13. Nf2 {[%clk 0:03:02]} 13... Be6 {[%clk 0:02:42.4]} 14. Ng5 {[%clk
0:03:02.8]} 14... Qxd1 {[%clk 0:02:42.4]} 15. Rxd1 {[%clk 0:03:03.2]} 15... Rad8
{[%clk 0:02:44.1]} 16. Nxe6 {[%clk 0:02:58.1]} 16... Nxe6 {[%clk 0:02:46]} 17.
Be3 {[%clk 0:02:58.1]} 17... Bh6 {[%clk 0:02:43.5]} 18. g3 {[%clk 0:02:46.8]}
18... Nxe5 {[%clk 0:02:42]} 19. a4 {[%clk 0:02:44.1]} 19... Ng7 {[%clk
0:02:15.6]} 20. Ne4 {[%clk 0:02:39.9]} 20... Nf5 {[%clk 0:02:15.1]} 21. Bf2
{[%clk 0:02:41.1]} 21... Nc6 {[%clk 0:02:12.2]} 22. Bf3 {[%clk 0:02:32.8]} 22...
Na5 {[%clk 0:02:08.1]} 23. b4 {[%clk 0:02:32.7]} 23... Nb3 {[%clk 0:01:59.2]}
24. Rab1 {[%clk 0:02:33.4]} 24... c4 {[%clk 0:01:55.8]} 25. Be2 {[%clk
0:02:28.1]} 25... Rc8 {[%clk 0:01:38]} 26. Nd2 {[%clk 0:02:12.9]} 26... Nxd2
{[%clk 0:01:33.9]} 27. Rxd2 {[%clk 0:02:14.1]} 27... Bg7 {[%clk 0:01:35.6]} 28.
Rc1 {[%clk 0:02:10.4]} 28... Nd6 {[%clk 0:01:31.8]} 29. Bf3 {[%clk 0:02:07.6]}
29... Rfd8 {[%clk 0:01:27.4]} 30. Rcc2 {[%clk 0:02:03.7]} 30... Nf5 {[%clk
0:01:20.6]} 31. g4 {[%clk 0:02:00.9]} 31... Rxd2 {[%clk 0:01:14.9]} 32. Rxd2
{[%clk 0:02:01.5]} 32... Nd6 {[%clk 0:01:02.1]} 33. Rc2 {[%clk 0:02:00.5]} 33...
Rd8 {[%clk 0:00:57.7]} 34. Kf1 {[%clk 0:01:59.2]} 34... f5 {[%clk 0:00:59]} 35.
g5 {[%clk 0:01:58.4]} 35... Ne4 {[%clk 0:00:57.8]} 36. Be1 {[%clk 0:01:58.7]}
36... Rd3 {[%clk 0:00:57.7]} 37. Be2 {[%clk 0:01:59.9]} 37... Rh3 {[%clk
0:00:55.5]} 38. Bxc4+ {[%clk 0:01:59.6]} 38... Kf8 {[%clk 0:00:57.2]} 39. Bd5
{[%clk 0:01:44.7]} 39... Rf3+ {[%clk 0:00:53.8]} 40. Ke2 {[%clk 0:01:43.3]}
40... Rxf4 {[%clk 0:00:55.2]} 41. c4 {[%clk 0:01:43.5]} 41... Nxg5 {[%clk
0:00:47.2]} 42. c5 {[%clk 0:01:42.3]} 42... e6 {[%clk 0:00:47.5]} 43. c6 {[%clk
0:01:38.3]} 43... exd5 {[%clk 0:00:48.1]} 44. c7 {[%clk 0:01:39.5]} 44... Re4+
{[%clk 0:00:48.7]} 45. Kd3 {[%clk 0:01:40.5]} 45... Rd4+ {[%clk 0:00:43.2]} 46.
Ke2 {[%clk 0:01:37.7]} 46... Re4+ {[%clk 0:00:40.4]} 47. Kf1 {[%clk 0:01:36.3]}
47... Re8 {[%clk 0:00:40.2]} 48. c8=Q {[%clk 0:01:35.9]} 48... Rxc8 {[%clk
0:00:41.7]} 49. Rxc8+ {[%clk 0:01:37]} 49... Kf7 {[%clk 0:00:43.2]} 50. Rc7+
{[%clk 0:01:38.4]} 50... Kf6 {[%clk 0:00:44.7]} 51. Rxa7 {[%clk 0:01:39.6]}
51... Nf3 {[%clk 0:00:43.6]} 52. b5 {[%clk 0:01:36.1]} 52... Bh6 {[%clk
0:00:41.4]} 53. Bf2 {[%clk 0:01:34.9]} 53... Nxh2+ {[%clk 0:00:37.2]} 54. Ke2
{[%clk 0:01:36.2]} 54... g5 {[%clk 0:00:33.6]} 55. Bxb6 {[%clk 0:01:37]} 55...
g4 {[%clk 0:00:35]} 56. Bd4+ {[%clk 0:01:38.1]} 56... Kg6 {[%clk 0:00:34.2]} 57.
Ra6+ {[%clk 0:01:37]} 57... Kh5 {[%clk 0:00:35.1]} 58. Rxh6+ {[%clk 0:01:37.1]}
58... Kxh6 {[%clk 0:00:36.4]} 59. b6 {[%clk 0:01:39]} 59... Nf3 {[%clk
0:00:36.4]} 60. Be3+ {[%clk 0:01:40.4]} 60... Kg6 {[%clk 0:00:36.5]} 61. b7
{[%clk 0:01:41.9]} 61... f4 {[%clk 0:00:36.2]} 62. b8=Q {[%clk 0:01:40.1]} 62...
fxe3 {[%clk 0:00:37.5]} 63. Qd6+ {[%clk 0:01:41.2]} 63... Kg5 {[%clk 0:00:38.3]}
64. Qxd5+ {[%clk 0:01:42.4]} 64... Kh4 {[%clk 0:00:40]} 65. Kxe3 {[%clk
0:01:43.1]} 65... Ng5 {[%clk 0:00:39.6]} 66. Qh1+ {[%clk 0:01:41.4]} 66... Nh3
{[%clk 0:00:38.4]} 67. a5 {[%clk 0:01:39.5]} 67... g3 {[%clk 0:00:38.7]} 68. a6
{[%clk 0:01:40.9]} 68... Kg4 {[%clk 0:00:39]} 69. a7 {[%clk 0:01:41.5]} 69...
Nf2 {[%clk 0:00:39.4]} 70. Qf3+ {[%clk 0:01:42]} 70... Kh3 {[%clk 0:00:39.9]}
71. Qxf2 {[%clk 0:01:42.8]} 71... gxf2 {[%clk 0:00:40.5]} 72. Kxf2 {[%clk
0:01:44.1]} 72... Kh2 {[%clk 0:00:39.2]} 73. a8=Q {[%clk 0:01:43.9]} 1-0

[Event "*** Titled Tuesday 3|2 Blitz"]
[Site "Chess.com"]
[Date "2015.12.01"]
[Round "2"]
[White "HansCoolNiemann"]
[Black "tigra"]
[Result "0-1"]
[WhiteElo "2167"]
[BlackElo "1915"]
[TimeControl "180+2"]
[EndTime "11:21:34 PST"]
[Termination "tigra won on time"]

1. d4 {[%clk 0:02:58.1]} 1... e6 {[%clk 0:03:00.2]} 2. c4 {[%clk 0:02:56.8]}
2... Nf6 {[%clk 0:03:00.8]} 3. Nc3 {[%clk 0:02:57.1]} 3... c5 {[%clk 0:03:00.3]}
4. d5 {[%clk 0:02:52.8]} 4... exd5 {[%clk 0:03:01.3]} 5. cxd5 {[%clk 0:02:54.7]}
5... d6 {[%clk 0:03:02.8]} 6. Nf3 {[%clk 0:02:53.7]} 6... g6 {[%clk 0:03:02.9]}
7. Bf4 {[%clk 0:02:54.7]} 7... Nh5 {[%clk 0:03:03.7]} 8. Bg5 {[%clk 0:02:53.7]}
8... f6 {[%clk 0:03:04.9]} 9. Bc1 {[%clk 0:02:55.1]} 9... Be7 {[%clk 0:03:05.8]}
10. e4 {[%clk 0:02:53.7]} 10... O-O {[%clk 0:03:06.1]} 11. Be2 {[%clk
0:02:52.7]} 11... f5 {[%clk 0:03:06.9]} 12. O-O {[%clk 0:02:49.1]} 12... a6
{[%clk 0:03:03.6]} 13. a4 {[%clk 0:02:44.4]} 13... Bf6 {[%clk 0:03:00.9]} 14.
Nd2 {[%clk 0:02:35]} 14... Ng7 {[%clk 0:02:34.7]} 15. Nc4 {[%clk 0:02:30.9]}
15... g5 {[%clk 0:02:35.5]} 16. exf5 {[%clk 0:02:26.4]} 16... Nxf5 {[%clk
0:02:29.4]} 17. Bg4 {[%clk 0:02:25.9]} 17... b6 {[%clk 0:02:23.4]} 18. Ra3
{[%clk 0:02:11.6]} 18... Ra7 {[%clk 0:02:18.5]} 19. Ne4 {[%clk 0:02:09.5]} 19...
Be7 {[%clk 0:02:13.2]} 20. Rh3 {[%clk 0:02:03.6]} 20... Rf7 {[%clk 0:02:13.6]}
21. Qd2 {[%clk 0:01:47.5]} 21... b5 {[%clk 0:02:11.9]} 22. axb5 {[%clk
0:01:33.7]} 22... axb5 {[%clk 0:02:12.5]} 23. Na3 {[%clk 0:01:34.7]} 23... Nd4
{[%clk 0:02:06.4]} 24. Bxc8 {[%clk 0:01:32]} 24... Qxc8 {[%clk 0:02:07.3]} 25.
Nxg5 {[%clk 0:01:31.3]} 25... Rg7 {[%clk 0:02:06.3]} 26. Rg3 {[%clk 0:01:19.2]}
26... Bxg5 {[%clk 0:01:58.8]} 27. Rxg5 {[%clk 0:01:18.6]} 27... Nf3+ {[%clk
0:01:59.7]} 28. gxf3 {[%clk 0:01:15.1]} 28... Rxg5+ {[%clk 0:02:01]} 29. Kh1
{[%clk 0:01:12.8]} 29... Rag7 {[%clk 0:02:01]} 30. Qxg5 {[%clk 0:01:01.5]} 30...
Rxg5 {[%clk 0:02:01.3]} 31. Bxg5 {[%clk 0:01:03.4]} 31... Qh3 {[%clk 0:01:54.9]}
32. Rg1 {[%clk 0:00:53]} 32... Qxf3+ {[%clk 0:01:55.4]} 33. Rg2 {[%clk
0:00:53.9]} 33... Qb3 {[%clk 0:01:43.3]} 34. h4 {[%clk 0:00:43.3]} 34... Kf7
{[%clk 0:01:42.1]} 35. f4 {[%clk 0:00:31.5]} 35... Nd7 {[%clk 0:01:36.6]} 36.
Nc2 {[%clk 0:00:28.3]} 36... Nb6 {[%clk 0:01:32.2]} 37. Bh6 {[%clk 0:00:18.1]}
37... Nxd5 {[%clk 0:01:31.3]} 38. Ne1 {[%clk 0:00:16.7]} 38... Qd1 {[%clk
0:01:29.6]} 39. Rg1 {[%clk 0:00:16.4]} 39... Qe2 {[%clk 0:01:27.8]} 40. Ng2
{[%clk 0:00:16.1]} 40... Qxb2 {[%clk 0:01:26.2]} 41. Re1 {[%clk 0:00:15.4]}
41... Qf2 {[%clk 0:01:23.7]} 42. Bg5 {[%clk 0:00:15]} 42... b4 {[%clk
0:01:23.8]} 43. Rd1 {[%clk 0:00:15.2]} 43... Qf3 {[%clk 0:01:23.3]} 44. Ra1
{[%clk 0:00:14.5]} 44... Ne3 {[%clk 0:01:23.4]} 45. Ra7+ {[%clk 0:00:13.8]}
45... Kg6 {[%clk 0:01:21.3]} 46. f5+ {[%clk 0:00:12.3]} 46... Nxf5 {[%clk
0:01:17.2]} 47. Kh2 {[%clk 0:00:12]} 47... Qe2 {[%clk 0:01:14.3]} 48. Kh3 {[%clk
0:00:11.8]} 48... Qf3+ {[%clk 0:01:11.4]} 49. Kh2 {[%clk 0:00:12.4]} 49... Qg3+
{[%clk 0:01:12.6]} 50. Kh1 {[%clk 0:00:13]} 50... Kh5 {[%clk 0:01:08.9]} 51.
Rxh7+ {[%clk 0:00:07.7]} 51... Kg4 {[%clk 0:01:09.6]} 52. Rf7 {[%clk 0:00:02.5]}
52... Qf2 {[%clk 0:00:59.4]} 53. Kh2 {[%clk 0:00:02.8]} 53... Qg3+ {[%clk
0:00:58.5]} 54. Kh1 {[%clk 0:00:03.4]} 54... b3 {[%clk 0:00:57.6]} 0-1

[Event "*** Titled Tuesday 3|2 Blitz"]
[Site "Chess.com"]
[Date "2015.12.01"]
[Round "2"]
[White "GeorgMeier"]
[Black "olomi007"]
[Result "1-0"]
[WhiteElo "2623"]
[BlackElo "2426"]
[TimeControl "180+2"]
[EndTime "11:21:38 PST"]
[Termination "GeorgMeier won by resignation"]

1. Nf3 {[%clk 0:03:01.9]} 1... g6 {[%clk 0:02:59.9]} 2. e4 {[%clk 0:03:01.6]}
2... Bg7 {[%clk 0:02:59.9]} 3. d4 {[%clk 0:03:02.5]} 3... d6 {[%clk 0:02:59.8]}
4. Bc4 {[%clk 0:02:58.4]} 4... Nf6 {[%clk 0:02:58.8]} 5. Qe2 {[%clk 0:02:58.2]}
5... Nc6 {[%clk 0:02:56.6]} 6. c3 {[%clk 0:02:54.8]} 6... e5 {[%clk 0:02:51.4]}
7. dxe5 {[%clk 0:02:55.1]} 7... Nxe5 {[%clk 0:02:48.8]} 8. Nxe5 {[%clk
0:02:55.6]} 8... dxe5 {[%clk 0:02:50.2]} 9. O-O {[%clk 0:02:55.9]} 9... O-O
{[%clk 0:02:50.6]} 10. Be3 {[%clk 0:02:50.1]} 10... Qe7 {[%clk 0:02:41.4]} 11.
f3 {[%clk 0:02:48.7]} 11... Be6 {[%clk 0:02:36.3]} 12. Nd2 {[%clk 0:02:48.8]}
12... Rfd8 {[%clk 0:02:35.7]} 13. Rad1 {[%clk 0:02:35.7]} 13... Nh5 {[%clk
0:02:33.1]} 14. Bxe6 {[%clk 0:02:32.7]} 14... Qxe6 {[%clk 0:02:33.6]} 15. Qc4
{[%clk 0:02:29.2]} 15... Qxc4 {[%clk 0:02:11]} 16. Nxc4 {[%clk 0:02:29.4]} 16...
b6 {[%clk 0:02:09.8]} 17. a4 {[%clk 0:02:21.9]} 17... Nf4 {[%clk 0:02:03.4]} 18.
Kf2 {[%clk 0:02:18.1]} 18... Ne6 {[%clk 0:01:49.7]} 19. Ke2 {[%clk 0:02:14.6]}
19... f6 {[%clk 0:01:49.8]} 20. b4 {[%clk 0:02:09.8]} 20... Kf7 {[%clk
0:01:45.9]} 21. g4 {[%clk 0:02:00]} 21... Bf8 {[%clk 0:01:43.4]} 22. h4 {[%clk
0:01:55.3]} 22... a6 {[%clk 0:01:30.9]} 23. Rd5 {[%clk 0:01:52.9]} 23... b5
{[%clk 0:01:07.4]} 24. axb5 {[%clk 0:01:47.6]} 24... axb5 {[%clk 0:01:09.3]} 25.
Na5 {[%clk 0:01:33.7]} 25... c5 {[%clk 0:00:41.3]} 26. Rxd8 {[%clk 0:01:23.7]}
26... Nxd8 {[%clk 0:00:28.7]} 27. Rb1 {[%clk 0:01:08.3]} 27... cxb4 {[%clk
0:00:27.7]} 28. cxb4 {[%clk 0:01:08.8]} 28... Bxb4 {[%clk 0:00:24.5]} 29. Rxb4
{[%clk 0:00:58.9]} 29... Rxa5 {[%clk 0:00:25.6]} 30. Bb6 {[%clk 0:01:00.3]}
30... Ra2+ {[%clk 0:00:26.6]} 31. Ke3 {[%clk 0:00:56.4]} 31... Nc6 {[%clk
0:00:25]} 32. Rxb5 {[%clk 0:00:56.8]} 32... Ra3+ {[%clk 0:00:25.8]} 33. Kf2
{[%clk 0:00:57.5]} 33... Ra2+ {[%clk 0:00:26.4]} 34. Kg3 {[%clk 0:00:58.3]}
34... Nd4 {[%clk 0:00:26.4]} 35. Bxd4 {[%clk 0:00:56.6]} 35... exd4 {[%clk
0:00:28.3]} 36. Rb7+ {[%clk 0:00:57.9]} 36... Ke6 {[%clk 0:00:28.7]} 37. Rxh7
{[%clk 0:00:53.8]} 37... d3 {[%clk 0:00:29.3]} 38. Rh8 {[%clk 0:00:50.4]} 38...
Ke7 {[%clk 0:00:25.8]} 39. Rb8 {[%clk 0:00:34]} 39... d2 {[%clk 0:00:14.5]} 40.
Rb1 {[%clk 0:00:34.5]} 40... Kd6 {[%clk 0:00:15.4]} 41. Kf4 {[%clk 0:00:27.4]}
41... Kc5 {[%clk 0:00:15.3]} 42. Ke3 {[%clk 0:00:19.7]} 42... Kc4 {[%clk
0:00:14.5]} 43. Rd1 {[%clk 0:00:18.4]} 43... Kc3 {[%clk 0:00:15.8]} 44. h5
{[%clk 0:00:19.7]} 44... gxh5 {[%clk 0:00:13.3]} 45. gxh5 {[%clk 0:00:21.6]}
45... Ra5 {[%clk 0:00:14.4]} 46. Rxd2 {[%clk 0:00:21]} 46... Rxh5 {[%clk
0:00:15.4]} 47. Rd6 {[%clk 0:00:22]} 47... f5 {[%clk 0:00:16.2]} 48. Rd5 {[%clk
0:00:23.1]} 48... Kc4 {[%clk 0:00:15.6]} 49. Rxf5 {[%clk 0:00:23.2]} 49... Rh1
{[%clk 0:00:16.8]} 50. Rd5 {[%clk 0:00:24]} 50... Rh4 {[%clk 0:00:17.1]} 51. Rd2
{[%clk 0:00:24.3]} 51... Kc5 {[%clk 0:00:17.7]} 52. e5 {[%clk 0:00:25.4]} 52...
Kc6 {[%clk 0:00:18.7]} 53. f4 {[%clk 0:00:26.6]} 1-0

[Event "*** Titled Tuesday 3|2 Blitz"]
[Site "Chess.com"]
[Date "2015.12.01"]
[Round "2"]
[White "oskariot"]
[Black "chessloveyou"]
[Result "0-1"]
[WhiteElo "2243"]
[BlackElo "2147"]
[TimeControl "180+2"]
[EndTime "11:21:47 PST"]
[Termination "chessloveyou won by resignation"]

1. e4 {[%clk 0:02:52.5]} 1... c6 {[%clk 0:03:00.1]} 2. d4 {[%clk 0:02:52.9]}
2... d5 {[%clk 0:02:50]} 3. e5 {[%clk 0:02:49]} 3... Bf5 {[%clk 0:02:49.6]} 4.
Nd2 {[%clk 0:02:49.3]} 4... h5 {[%clk 0:02:48.3]} 5. Nb3 {[%clk 0:02:47]} 5...
Qb6 {[%clk 0:02:46.4]} 6. Nf3 {[%clk 0:02:36.7]} 6... e6 {[%clk 0:02:42.9]} 7.
Be2 {[%clk 0:02:32.4]} 7... Ne7 {[%clk 0:02:43]} 8. O-O {[%clk 0:02:33.3]} 8...
Nd7 {[%clk 0:02:43.2]} 9. a4 {[%clk 0:02:25.6]} 9... Qd8 {[%clk 0:02:43.3]} 10.
a5 {[%clk 0:02:26.2]} 10... Bg4 {[%clk 0:02:40.7]} 11. c4 {[%clk 0:02:22.6]}
11... Nf5 {[%clk 0:02:41.3]} 12. a6 {[%clk 0:02:17.8]} 12... b6 {[%clk
0:02:41.4]} 13. cxd5 {[%clk 0:02:13.2]} 13... exd5 {[%clk 0:02:39.7]} 14. Bg5
{[%clk 0:02:02.9]} 14... Be7 {[%clk 0:02:40.2]} 15. Bxe7 {[%clk 0:01:58.8]}
15... Qxe7 {[%clk 0:02:42.1]} 16. Rc1 {[%clk 0:01:59]} 16... Rc8 {[%clk
0:02:40]} 17. h3 {[%clk 0:02:00.1]} 17... Rh6 {[%clk 0:02:24.8]} 18. Qd3 {[%clk
0:01:50]} 18... Nh4 {[%clk 0:02:10.8]} 19. Nxh4 {[%clk 0:01:44.4]} 19... Qxh4
{[%clk 0:02:10.7]} 20. Nd2 {[%clk 0:01:35.9]} 20... Bxe2 {[%clk 0:02:10]} 21.
Qxe2 {[%clk 0:01:36.4]} 21... Qxd4 {[%clk 0:02:10.7]} 22. Kh1 {[%clk 0:01:31.8]}
22... Qxe5 {[%clk 0:02:08.4]} 23. Qd3 {[%clk 0:01:26.2]} 23... Kf8 {[%clk
0:02:05.2]} 24. b4 {[%clk 0:01:24.1]} 24... Kg8 {[%clk 0:02:05.4]} 25. Rfe1
{[%clk 0:01:22.9]} 25... Qd6 {[%clk 0:02:06]} 26. Rb1 {[%clk 0:01:16.9]} 26...
Re6 {[%clk 0:02:00.5]} 27. Rf1 {[%clk 0:01:12.4]} 27... Rce8 {[%clk 0:01:56.9]}
28. Nf3 {[%clk 0:01:13.6]} 28... Ne5 {[%clk 0:01:57.5]} 29. Nxe5 {[%clk
0:01:11.5]} 29... Qxe5 {[%clk 0:01:58.5]} 30. Rbc1 {[%clk 0:01:12.3]} 30... Qb2
{[%clk 0:01:44.2]} 31. Rb1 {[%clk 0:00:43.9]} 31... Qe2 {[%clk 0:01:41.8]} 32.
Qg3 {[%clk 0:00:45.1]} 32... Qxa6 {[%clk 0:01:38.8]} 33. b5 {[%clk 0:00:44.9]}
33... cxb5 {[%clk 0:01:38.1]} 34. Qd3 {[%clk 0:00:46.1]} 34... Re5 {[%clk
0:01:25.7]} 35. Rxb5 {[%clk 0:00:44.3]} 35... Re1 {[%clk 0:01:19.6]} 36. Rxe1
{[%clk 0:00:35.5]} 36... Rxe1+ {[%clk 0:01:19.4]} 37. Kh2 {[%clk 0:00:36.4]}
37... Re5 {[%clk 0:01:09.8]} 38. Qb3 {[%clk 0:00:26.2]} 38... Qb7 {[%clk
0:01:07.9]} 39. Qc2 {[%clk 0:00:23.7]} 39... Qb8 {[%clk 0:01:06.7]} 40. g3
{[%clk 0:00:24.3]} 40... Qe8 {[%clk 0:01:05.7]} 41. Rb2 {[%clk 0:00:23.6]} 41...
d4 {[%clk 0:01:04.7]} 42. Qd2 {[%clk 0:00:23.6]} 42... Rd5 {[%clk 0:01:03.1]}
43. Qd3 {[%clk 0:00:23.8]} 43... Qe5 {[%clk 0:00:54.3]} 44. Re2 {[%clk
0:00:24.3]} 44... Qb8 {[%clk 0:00:50.9]} 45. Re7 {[%clk 0:00:22.3]} 45... h4
{[%clk 0:00:43.2]} 46. Qf3 {[%clk 0:00:23.1]} 46... hxg3+ {[%clk 0:00:43.4]} 47.
Kg2 {[%clk 0:00:23.8]} 47... Qf8 {[%clk 0:00:40.1]} 48. Rxa7 {[%clk 0:00:23.5]}
48... Rd8 {[%clk 0:00:36.4]} 49. fxg3 {[%clk 0:00:21.4]} 49... d3 {[%clk
0:00:37.7]} 50. Ra1 {[%clk 0:00:20.2]} 50... d2 {[%clk 0:00:37.6]} 51. Rd1
{[%clk 0:00:19.9]} 51... Qc5 {[%clk 0:00:38.3]} 52. Kf1 {[%clk 0:00:20.4]} 52...
Qc4+ {[%clk 0:00:38.3]} 53. Kf2 {[%clk 0:00:19.1]} 53... Qd4+ {[%clk 0:00:37.8]}
54. Kf1 {[%clk 0:00:16]} 54... Qd3+ {[%clk 0:00:36.9]} 55. Qxd3 {[%clk
0:00:16.6]} 55... Rxd3 {[%clk 0:00:37.5]} 56. Ke2 {[%clk 0:00:18.5]} 56... Rxg3
{[%clk 0:00:36.9]} 57. Rxd2 {[%clk 0:00:19.6]} 57... Rg2+ {[%clk 0:00:37.6]} 58.
Ke1 {[%clk 0:00:19.8]} 0-1

[Event "*** Titled Tuesday 3|2 Blitz"]
[Site "Chess.com"]
[Date "2015.12.01"]
[Round "2"]
[White "pKiLz5Rn9b"]
[Black "Anton_Demchenko"]
[Result "1/2-1/2"]
[WhiteElo "2468"]
[BlackElo "2661"]
[TimeControl "180+2"]
[EndTime "11:21:49 PST"]
[Termination "Game drawn by agreement"]

1. e4 {[%clk 0:03:01.9]} 1... e5 {[%clk 0:03:00.1]} 2. Nf3 {[%clk 0:02:52.7]}
2... Nc6 {[%clk 0:03:00.5]} 3. Bc4 {[%clk 0:02:53]} 3... d6 {[%clk 0:02:57.1]}
4. h3 {[%clk 0:02:43.1]} 4... Be7 {[%clk 0:02:55.6]} 5. O-O {[%clk 0:02:42.7]}
5... Nf6 {[%clk 0:02:56.3]} 6. Nc3 {[%clk 0:02:39.3]} 6... O-O {[%clk
0:02:56.9]} 7. d4 {[%clk 0:02:40.4]} 7... exd4 {[%clk 0:02:41.6]} 8. Nxd4 {[%clk
0:02:37.4]} 8... Ne5 {[%clk 0:02:43.5]} 9. Bb3 {[%clk 0:02:38.6]} 9... c6 {[%clk
0:02:12.3]} 10. f4 {[%clk 0:02:37.4]} 10... Ng6 {[%clk 0:02:13.3]} 11. a4 {[%clk
0:02:32.7]} 11... Re8 {[%clk 0:02:12.1]} 12. Qd3 {[%clk 0:02:30.3]} 12... Bf8
{[%clk 0:02:12.3]} 13. Bd2 {[%clk 0:02:27.9]} 13... Qc7 {[%clk 0:01:55.3]} 14.
Rae1 {[%clk 0:02:26]} 14... Bd7 {[%clk 0:01:52.8]} 15. Kh1 {[%clk 0:02:21.1]}
15... Rad8 {[%clk 0:01:52.5]} 16. Qg3 {[%clk 0:02:17.6]} 16... Bc8 {[%clk
0:01:45.9]} 17. f5 {[%clk 0:02:01.7]} 17... Ne5 {[%clk 0:01:43.1]} 18. Bg5
{[%clk 0:01:45.7]} 18... Qe7 {[%clk 0:01:35.3]} 19. Nf3 {[%clk 0:01:42.4]} 19...
Kh8 {[%clk 0:01:25.1]} 20. Qh4 {[%clk 0:01:33.1]} 20... h6 {[%clk 0:01:22.5]}
21. Bxf6 {[%clk 0:01:23.9]} 21... Qxf6 {[%clk 0:01:03]} 22. Qxf6 {[%clk
0:01:24.8]} 22... gxf6 {[%clk 0:01:04.9]} 23. Nxe5 {[%clk 0:01:26.3]} 23... Rxe5
{[%clk 0:01:06.6]} 24. Bxf7 {[%clk 0:01:27.5]} 24... Kg7 {[%clk 0:01:07.6]} 25.
Bb3 {[%clk 0:01:26]} 25... Rde8 {[%clk 0:01:06.9]} 26. Rd1 {[%clk 0:01:18.3]}
26... a6 {[%clk 0:01:07.3]} 27. Bc4 {[%clk 0:01:14.6]} 27... b5 {[%clk
0:01:06.4]} 28. Bd3 {[%clk 0:01:15.7]} 28... h5 {[%clk 0:00:48.6]} 29. axb5
{[%clk 0:01:07.4]} 29... axb5 {[%clk 0:00:49.2]} 30. Na2 {[%clk 0:00:59.7]}
30... Bd7 {[%clk 0:00:45.2]} 31. Nc3 {[%clk 0:00:53.9]} 31... Kh6 {[%clk
0:00:45.1]} 32. Nb1 {[%clk 0:00:32.1]} 32... d5 {[%clk 0:00:42.2]} 33. exd5
{[%clk 0:00:31.6]} 33... Rxd5 {[%clk 0:00:44.1]} 34. Nc3 {[%clk 0:00:33]} 34...
Rde5 {[%clk 0:00:26.9]} 35. Bxb5 {[%clk 0:00:30.7]} 35... cxb5 {[%clk
0:00:22.4]} 36. Rxd7 {[%clk 0:00:31.2]} 36... Rc8 {[%clk 0:00:24.3]} 37. Rf2
{[%clk 0:00:16]} 37... Re1+ {[%clk 0:00:24.1]} 38. Kh2 {[%clk 0:00:17.1]} 38...
Rc6 {[%clk 0:00:21.5]} 39. g3 {[%clk 0:00:15.1]} 39... Bd6 {[%clk 0:00:19.8]}
40. Nd5 {[%clk 0:00:14.2]} 40... Be5 {[%clk 0:00:20.7]} 41. Ne7 {[%clk
0:00:15.7]} 41... h4 {[%clk 0:00:07.3]} 42. Nxc6 {[%clk 0:00:06.4]} 42... hxg3+
{[%clk 0:00:08.2]} 43. Kg2 {[%clk 0:00:08]} 43... gxf2 {[%clk 0:00:09.8]} 44.
Kxf2 {[%clk 0:00:09.6]} 44... Bxb2 {[%clk 0:00:10.9]} 45. Rd5 {[%clk 0:00:08.9]}
45... Rc1 {[%clk 0:00:10]} 46. Rxb5 {[%clk 0:00:07]} 46... Rxc2+ {[%clk
0:00:10.9]} 47. Kf3 {[%clk 0:00:08.7]} 47... Rxc6 {[%clk 0:00:10.9]} 48. Rxb2
{[%clk 0:00:10]} 48... Rc3+ {[%clk 0:00:12.6]} 49. Kg4 {[%clk 0:00:10.7]} 49...
Rc4+ {[%clk 0:00:14.1]} 50. Kg3 {[%clk 0:00:12.3]} 50... Rc3+ {[%clk 0:00:14.6]}
51. Kg4 {[%clk 0:00:11.9]} 51... Rc4+ {[%clk 0:00:15.4]} 52. Kg3 {[%clk
0:00:12.6]} 1/2-1/2